bitfinex-derivatives/quotes_BNBF0:USTF0_20250810
["timestamp","ask_amount","ask_price","bid_price","bid_amount"]
[1754843498875,0.0331692,802.14,801.76,2.79976]
[1754843499472,0.0331692,802.14,801.77,2.79976]
[1754843500571,0.0331692,802.14,801.76,2.79976]
[1754843501176,0.0331692,802.14,802.06,2.79976]
[1754843501576,0.0331692,802.14,802.07,2.79976]
[1754843502577,0.0331692,802.14,802.06,2.79976]
[1754843503678,0.0331692,802.14,801.75,3.92172709]
[1754843503874,0.0331692,802.14,801.94,3.92172709]
[1754843504779,0.0331692,802.14,801.93,3.92172709]
[1754843505878,0.0331692,802.14,801.74,2.79860329]
[1754843506377,0.0331692,802.14,801.73,2.79860329]
[1754843507485,0.0331692,802.14,801.74,2.79860329]
[1754843508078,0.0331692,802.14,801.36,3.92172709]
[1754843508079,0.0331692,802.14,801.76,2.79860329]
[1754843508580,0.0331692,802.14,801.74,2.79860329]
[1754843509782,0.0331692,802.14,801.73,2.79860329]
[1754843510184,0.0331692,802.14,801.74,2.79860329]
[1754843511585,0.0331692,802.14,801.55,2.79860329]
[1754843512783,0.0331692,802.14,801.53,2.79860329]
[1754843514185,0.0331692,802.14,801.58,2.79860329]
[1754843515188,0.0331692,802.14,801.61,2.79860329]
[1754843515685,0.0331692,802.14,801.62,2.79860329]
[1754843516289,0.0331692,802.14,801.61,2.79860329]
[1754843516784,0.0331692,802.14,801.69,2.79860329]
[1754843517289,0.0331692,802.14,801.68,2.79860329]
[1754843517789,0.0331692,802.14,801.79,2.79860329]
[1754843518386,0.0331692,802.14,801.8,2.79860329]
[1754843518888,0.0331692,802.14,801.85,2.79860329]
[1754843519485,0.0331692,802.14,801.86,2.79860329]
[1754843520489,0.0331692,802.14,801.85,2.79860329]
[1754843521390,0.0331692,802.14,801.86,2.79860329]
[1754843522091,0.0331692,802.14,802.03,2.79860329]
[1754843522490,0.0331692,802.14,802.09,2.79860329]
[1754843523591,0.0331692,802.14,801.82,3.92172709]
[1754843524394,0.0331692,802.14,801.85,3.92172709]
[1754843525496,0.0331692,802.14,802.09,3.92172709]
[1754843526793,0.0331692,802.14,801.68,5.58053129]
[1754843526995,0.0331692,802.14,802.13,3.91989177]
[1754843528899,0.0331692,802.14,801.73,5.58053129]
[1754843531599,0.0331692,802.14,802.08,3.91950678]
[1754843532602,0.0331692,802.14,801.84,3.91950678]
[1754843534208,0.0331692,802.14,802.08,2.79964507]
[1754843535205,0.0331692,802.14,802.09,2.79964507]
[1754843536811,0.0331692,802.14,802.1,2.79964507]
[1754843537907,0.0331692,802.14,802.07,2.79964507]
[1754843539517,0.0331692,802.14,802.06,2.79964507]
[1754843541615,0.0331692,802.14,802.1,2.79964507]
[1754843542116,0.0331692,802.14,801.92,3.91950678]
[1754843543013,0.0331692,802.14,802.03,2.79989015]
[1754843544117,0.0331692,802.14,802.04,2.79989015]
[1754843544515,0.0331692,802.14,802.09,2.79989015]
[1754843545019,0.0331692,802.14,802.01,2.79989015]
[1754843546020,0.0331692,802.14,801.97,2.79989015]
[1754843547221,0.0331692,802.14,801.96,2.79989015]
[1754843548121,0.0331692,802.14,801.95,2.79989015]
[1754843549217,0.0331692,802.14,801.96,2.79989015]
[1754843551418,0.0331692,802.14,801.99,2.79989015]
[1754843552924,0.0331692,802.14,802.09,2.79989015]
[1754843555124,0.0331692,802.14,801.76,3.91950678]
[1754843555725,0.0331692,802.14,801.91,3.91950678]
[1754843556626,0.0331692,802.14,802.06,3.91950678]
[1754843557723,0.0331692,802.14,801.88,3.91950678]
[1754843559826,0.0331692,802.14,801.86,3.91950678]
[1754843560827,0.0331692,802.14,801.97,3.91950678]
[1754843561527,0.0331692,802.14,802.13,2.79850378]
[1754843562028,0.0331692,802.14,801.8,3.91950678]
[1754843563027,0.0331692,802.14,801.81,3.91950678]
[1754843564031,0.0331692,802.14,801.92,2.79797556]
[1754843564426,0.0331692,802.14,801.93,2.79797556]
[1754843565627,0.0331692,802.14,801.54,3.91950678]
[1754843565628,0.0331692,802.14,802.0,2.79797556]
[1754843566532,0.0331692,802.14,802.13,2.79797556]
[1754843567532,0.0331692,802.14,802.12,2.79797556]
[1754843568029,0.0331692,802.14,801.73,3.91950678]
[1754843568030,0.0331692,802.14,802.1,3.91950678]
[1754843569232,0.0331692,802.14,802.09,3.91950678]
[1754843570132,0.0331692,802.14,802.06,2.79477531]
[1754843570528,0.0331692,802.14,802.08,2.79477531]
[1754843571529,0.0331692,802.14,801.67,3.91950678]
[1754843572235,0.0331692,802.14,801.8,3.91950678]
[1754843573238,0.0331692,802.14,801.79,3.91950678]
[1754843574237,0.0331692,802.14,801.78,3.91950678]
[1754843575335,0.0331692,802.14,801.77,3.91950678]
[1754843580647,0.0331692,802.14,801.89,3.91950678]
[1754843581743,0.0331692,802.14,802.08,3.91950678]
[1754843582645,0.0331692,802.14,802.1,3.91950678]
[1754843583745,0.0331692,802.14,802.01,3.91950678]
[1754843584848,0.0331692,802.14,802.0,3.91950678]
[1754843585849,0.0331692,802.14,801.98,3.91950678]
[1754843586850,0.0331692,802.14,802.08,3.91950678]
[1754843587846,0.0331692,802.14,802.07,3.91950678]
[1754843588947,0.0331692,802.14,802.09,3.91950678]
[1754843590053,0.0331692,802.14,802.07,3.91950678]
[1754843591149,0.0331692,802.14,801.93,3.91950678]
[1754843592250,0.0331692,802.14,801.88,3.91950678]
[1754843593850,0.0331692,802.14,802.11,2.79191215]
[1754843594255,0.0331692,802.14,802.01,2.79191215]
[1754843595250,0.0331692,802.14,801.59,2.79191215]
[1754843598562,0.0331692,802.14,801.63,2.79191215]
[1754843600557,0.0331692,802.14,801.64,2.79191215]
[1754843601460,0.0331692,802.14,801.57,2.79191215]
[1754843602562,0.0331692,802.14,801.58,2.79191215]
[1754843603762,0.0331692,802.14,801.59,2.79191215]
[1754843604164,0.0331692,802.14,801.63,2.79191215]
[1754843605268,0.0331692,802.14,802.02,2.79191215]
[1754843605663,0.0331692,802.14,802.03,2.79191215]
[1754843606265,0.0331692,802.14,802.05,2.79191215]
[1754843607367,0.0331692,802.14,802.07,2.79191215]
[1754843607766,0.0331692,802.14,801.93,2.79191215]
[1754843607969,0.0331692,802.14,801.82,2.79191215]
[1754843609673,0.0331692,802.14,801.85,2.79191215]
[1754843610574,0.0331692,802.14,801.75,2.79191215]
[1754843611070,0.0331692,802.14,801.74,2.79191215]
[1754843611574,0.0331692,802.14,801.79,2.79191215]
[1754843612774,0.0331692,802.14,801.8,2.79191215]
[1754843614174,0.0331692,802.14,801.79,2.79191215]
[1754843616273,0.0331692,802.14,801.8,2.79191215]
[1754843617875,0.0331692,802.14,801.96,2.79191215]
[1754843618474,0.0331692,802.14,801.95,2.79191215]
[1754843618877,0.0331692,802.14,801.97,2.79191215]
[1754843619476,0.0331692,802.14,801.99,2.79191215]
[1754843619879,0.0331692,802.14,802.0,2.79191215]
[1754843620481,0.0331692,802.14,802.13,2.79191215]
[1754843621182,0.0331692,802.14,802.12,2.79191215]
[1754843622084,0.0331692,802.14,802.1,2.79191215]
[1754843622584,0.0331692,802.14,801.78,3.91950678]
[1754843623380,0.0331692,802.14,801.82,3.91950678]
[1754843624382,0.0331692,802.14,802.02,3.91950678]
[1754843626585,0.0331692,802.14,801.96,3.91950678]
[1754843627586,0.0331692,802.14,801.89,3.91950678]
[1754843627985,0.0331692,802.14,802.07,2.79179763]
[1754843628590,0.0331692,802.14,802.08,2.79179763]
[1754843630591,0.0331692,802.14,802.09,2.79179763]
[1754843631290,0.0331692,802.14,802.08,2.79179763]
[1754843631688,0.0331692,802.14,802.0,2.79179763]
[1754843633693,0.0331692,802.14,801.97,2.79179763]
[1754843636293,0.0331692,802.14,802.0,2.79179763]
[1754843636791,0.0331692,802.14,802.01,2.79179763]
[1754843637393,0.0331692,802.14,802.03,2.79179763]
[1754843637888,0.0331692,802.14,802.12,2.79179763]
[1754843638390,0.0331692,802.14,802.13,2.79179763]
[1754843638994,0.0331692,802.14,802.11,2.79179763]
[1754843639494,0.0331692,802.14,802.12,2.79179763]
[1754843640993,0.0331692,802.14,801.99,2.79179763]
[1754843641497,0.0331692,802.14,802.01,2.79179763]
[1754843641998,0.0331692,802.14,801.97,2.79179763]
[1754843643094,0.0331692,802.14,801.99,2.79179763]
[1754843643599,0.0331692,802.14,802.0,2.79179763]
[1754843644599,0.0331692,802.14,801.99,2.79179763]
[1754843645696,0.0331692,802.14,802.0,2.79179763]
[1754843647200,0.0331692,802.14,801.8,2.79179763]
[1754843647698,0.0331692,802.14,801.81,2.79179763]
[1754843648799,0.0331692,802.14,801.82,2.79179763]
[1754843649300,0.0331692,802.14,801.83,2.79179763]
[1754843650402,0.0331692,802.14,801.84,2.79179763]
[1754843651002,0.0331692,802.14,801.97,2.79179763]
[1754843652002,0.0331692,802.14,801.91,2.79179763]
[1754843652605,0.0331692,802.14,801.92,2.79179763]
[1754843653006,0.0331692,802.14,801.93,2.79179763]
[1754843655602,0.0331692,802.14,801.94,2.79179763]
[1754843657206,0.0331692,802.14,802.09,2.79179763]
[1754843657702,0.0331692,802.14,802.1,2.79179763]
[1754843658801,0.0331692,802.14,801.93,2.79179763]
[1754843659306,0.0331692,802.14,801.83,2.79179763]
[1754843661304,0.0331692,802.14,801.82,2.79179763]
[1754843661809,0.0331692,802.14,801.98,2.79179763]
[1754843663309,0.0331692,802.14,801.95,2.79179763]
[1754843664410,0.0331692,802.14,801.96,2.79179763]
[1754843664909,0.0331692,802.14,801.95,2.79179763]
[1754843665510,0.0331692,802.14,802.02,2.79179763]
[1754843667013,0.0331692,802.14,802.03,2.79179763]
[1754843667508,0.0331692,802.14,801.9,2.79179763]
[1754843668110,0.0331692,802.14,801.94,2.79179763]
[1754843668610,0.0331692,802.14,801.93,2.79179763]
[1754843669010,0.0331692,802.14,801.99,2.79179763]
[1754843670117,0.0331692,802.14,801.98,2.79179763]
[1754843670617,0.0331692,802.14,801.97,2.79179763]
[1754843671116,0.0331692,802.14,801.98,2.79179763]
[1754843671621,0.0331692,802.14,801.99,2.79179763]
[1754843672217,0.0331692,802.14,801.93,2.79179763]
[1754843673222,0.0331692,802.14,801.95,2.79179763]
[1754843676428,0.0331692,802.14,801.96,2.79179763]
[1754843677825,0.0331692,802.14,802.13,2.79179763]
[1754843679429,0.0331692,802.14,801.79,3.91950678]
[1754843679633,0.0331692,802.14,801.83,3.91950678]
[1754843680633,0.0331692,802.14,801.95,3.91950678]
[1754843681833,0.0331692,802.14,801.95,3.92661701]
[1754843683928,0.0331692,802.14,801.96,3.92661701]
[1754843684929,0.0331692,802.14,801.94,3.92661701]
[1754843686031,0.0331692,802.14,802.02,3.92661701]
[1754843688134,0.0331692,802.14,802.12,2.80465793]
[1754843688529,0.0331692,802.14,801.81,3.92661701]
[1754843689232,0.0331692,802.14,801.82,3.92661701]
[1754843690229,0.0331692,802.14,801.83,3.92661701]
[1754843691737,0.0331692,802.14,802.12,2.80438485]
[1754843693335,0.0331692,802.14,801.83,3.92661701]
[1754843693536,0.0331692,802.14,802.13,2.80421029]
[1754843695133,0.0331692,802.14,802.12,2.80421029]
[1754843696634,0.0331692,802.14,802.11,2.80421029]
[1754843697236,0.0331692,802.14,801.99,2.80421029]
[1754843698239,0.0331692,802.14,802.08,2.80421029]
[1754843699237,0.0331692,802.14,802.09,2.80421029]
[1754843699737,0.0331692,802.14,802.1,2.80421029]
[1754843700335,0.0331692,802.14,802.09,2.80421029]
[1754843701343,0.0331692,802.14,802.1,2.80421029]
[1754843701942,0.0331692,802.14,801.75,3.92661701]
[1754843702740,0.0331692,802.14,801.81,3.92661701]
[1754843703839,0.0331692,802.14,801.86,3.92661701]
[1754843704740,0.0331692,802.14,801.89,3.92661701]
[1754843705844,0.0331692,802.14,801.91,3.92661701]
[1754843706945,0.0331692,802.14,801.41,5.58053129]
[1754843707548,0.0331692,802.14,801.79,5.58053129]
[1754843707946,0.0331692,802.14,801.92,3.92509343]
[1754843708947,0.0331692,802.14,801.93,3.92509343]
[1754843710045,0.0331692,802.14,801.94,3.92509343]
[1754843712044,0.0331692,802.14,801.99,3.92509343]
[1754843713049,0.0331692,802.14,802.02,3.92509343]
[1754843714047,0.0331692,802.14,802.12,2.8036672]
[1754843716047,0.0331692,802.14,801.77,3.92509343]
[1754843716251,0.0331692,802.14,801.91,3.92509343]
[1754843719351,0.0331692,802.14,801.92,3.92509343]
[1754843720348,0.0331692,802.14,801.84,3.92509343]
[1754843721852,0.0331692,802.14,802.13,2.80346373]
[1754843722548,0.0331692,802.14,801.94,2.80346373]
[1754843722952,0.0331692,802.14,801.95,2.80346373]
[1754843723352,0.0331692,802.14,801.89,2.80346373]
[1754843723852,0.0331692,802.14,801.94,2.80346373]
[1754843726950,0.0331692,802.14,801.93,2.80346373]
[1754843729158,0.0331692,802.14,801.94,2.80346373]
[1754843729556,0.0331692,802.14,801.96,2.80346373]
[1754843730156,0.0331692,802.14,801.98,2.80346373]
[1754843732160,0.0331692,802.14,801.61,3.92509343]
[1754843732956,0.0331692,802.14,802.01,3.92509343]
[1754843734963,0.0331692,802.14,801.91,3.92509343]
[1754843736157,0.0331692,802.14,801.97,3.92509343]
[1754843737159,0.0331692,802.14,801.99,3.92509343]
[1754843739162,0.0331692,802.14,801.93,3.92509343]
[1754843741364,0.0331692,802.14,801.94,3.92509343]
[1754843741761,0.0331692,802.14,802.09,2.80383754]
[1754843742363,0.0331692,802.14,802.08,2.80383754]
[1754843743568,0.0331692,802.14,802.09,2.80383754]
[1754843744668,0.0331692,802.14,801.88,3.92509343]
[1754843746365,0.0331692,802.14,801.89,3.92509343]
[1754843747566,0.0331692,802.14,801.95,3.92509343]
[1754843748270,0.0331692,802.14,802.1,2.80392092]
[1754843748765,0.0331692,802.14,801.8,3.92509343]
[1754843749465,0.0331692,802.14,801.85,3.92509343]
[1754843750970,0.0331692,802.14,802.13,2.80394977]
[1754843751566,0.0331692,802.14,801.85,3.92509343]
[1754843752772,0.0331692,802.14,801.95,3.92509343]
[1754843753873,0.0331692,802.14,801.96,3.92509343]
[1754843755373,0.0331692,802.14,802.13,2.80401656]
[1754843755977,0.0331692,802.14,801.83,3.92509343]
[1754843757975,0.0331692,802.14,801.84,3.92509343]
[1754843758877,0.0331692,802.14,801.82,3.92509343]
[1754843760974,0.0331692,802.14,802.11,2.80382248]
[1754843762075,0.0331692,802.14,801.78,3.92509343]
[1754843763176,0.0331692,802.14,801.79,3.92509343]
[1754843766180,0.0331692,802.14,801.91,3.92509343]
[1754843768282,0.0331692,802.14,802.0,3.92509343]
[1754843769381,0.0331692,802.14,802.04,3.92509343]
[1754843770382,0.0331692,802.14,801.97,3.92509343]
[1754843771380,0.0331692,802.14,801.9,3.92509343]
[1754843773585,0.0331692,802.14,801.91,3.92509343]
[1754843774591,0.0331692,802.14,802.07,2.80419548]
[1754843775284,0.0331692,802.14,802.0,2.80419548]
[1754843776689,0.0331692,802.14,801.99,2.80419548]
[1754843778789,0.0331692,802.14,801.97,2.80419548]
[1754843780295,0.0331692,802.14,802.02,2.80419548]
[1754843780794,0.0331692,802.14,802.03,2.80419548]
[1754843781494,0.0331692,802.14,801.69,3.92509343]
[1754843781895,0.0331692,802.14,801.99,3.92509343]
[1754843782893,0.0331692,802.14,802.09,2.8027079]
[1754843783396,0.0331692,802.14,802.05,2.8027079]
[1754843784997,0.0331692,802.14,802.01,2.8027079]
[1754843785592,0.0331692,802.14,802.0,2.8027079]
[1754843788593,0.0331692,802.14,802.05,2.8027079]
[1754843789293,0.0331692,802.14,802.11,2.8027079]
[1754843790295,0.0331692,802.14,801.2,5.58053129]
[1754843791000,0.0331692,802.14,801.74,5.58053129]
[1754843791996,0.0331692,802.14,802.05,3.9211897]
[1754843792897,0.0331692,802.14,802.04,3.9211897]
[1754843793898,0.0331692,802.14,802.05,3.9211897]
[1754843796002,0.0331692,802.14,801.81,3.9211897]
[1754843797002,0.0331692,802.14,801.8,3.9211897]
[1754843797302,0.0331692,802.14,802.13,2.79922618]
[1754843797901,0.0331692,802.14,802.12,2.79922618]
[1754843798901,0.0331692,802.14,802.1,2.79922618]
[1754843800504,0.0331692,802.14,802.09,2.79922618]
[1754843801403,0.0331692,802.14,802.13,2.79922618]
[1754843802103,0.0331692,802.14,801.74,3.9211897]
[1754843802307,0.0331692,802.14,801.89,3.9211897]
[1754843803407,0.0331692,802.14,801.97,2.79786526]
[1754843803904,0.0331692,802.14,801.94,2.79786526]
[1754843804405,0.0331692,802.14,801.84,2.79786526]
[1754843805604,0.0331692,802.14,801.43,3.9211897]
[1754843805605,0.0331692,802.14,801.87,2.79786526]
[1754843806510,0.0331692,802.14,801.89,2.79786526]
[1754843807607,0.0331692,802.14,801.91,2.79786526]
[1754843808108,0.0331692,802.14,801.74,2.79786526]
[1754843808514,0.0331692,802.14,801.78,2.79786526]
[1754843809213,0.0331692,802.14,801.32,3.9211897]
[1754843809214,0.0331692,802.14,801.95,2.79786526]
[1754843809608,0.0331692,802.14,801.94,2.79786526]
[1754843811620,0.0331692,802.14,802.05,2.79786526]
[1754843812117,0.0331692,802.14,802.11,2.79786526]
[1754843812719,0.0331692,802.14,801.85,3.9211897]
[1754843813615,0.0331692,802.14,801.08,5.58053129]
[1754843813817,0.0331692,802.14,801.83,5.58053129]
[1754843817921,0.0331692,802.14,801.69,5.58053129]
[1754843818221,0.0331692,802.14,802.11,3.91126817]
[1754843819421,0.0331692,802.14,801.69,5.58053129]
[1754843819917,0.0331692,802.14,801.76,5.58053129]
[1754843821121,0.0331692,802.14,802.1,3.91033164]
[1754843825222,0.0331692,802.14,801.63,5.58053129]
[1754843826223,0.0331692,802.14,801.2,2.79255719]
[1754843826724,0.0331692,802.14,801.19,2.79255719]
[1754843827525,0.0331692,802.14,801.16,2.79255719]
[1754843828028,0.0331692,802.14,801.17,2.79255719]
[1754843830727,0.0331692,802.14,801.16,2.79255719]
[1754843832433,0.0331692,802.14,801.22,2.79255719]
[1754843834029,0.0331692,802.14,801.23,2.79255719]
[1754843834429,0.0331692,802.14,802.01,2.79255719]
[1754843836932,0.0331692,802.14,801.49,3.91033164]
[1754843836933,0.0331692,802.14,801.96,2.79255719]
[1754843838134,0.0331692,802.14,801.98,2.79255719]
[1754843838637,0.0331692,802.14,802.0,2.79255719]
[1754843839035,0.0331692,802.14,802.01,2.79255719]
[1754843839635,0.0331692,802.14,801.54,3.91033164]
[1754843839839,0.0331692,802.14,801.82,3.91033164]
[1754843841945,0.0331692,802.14,801.89,3.91033164]
[1754843842843,0.0331692,802.14,801.77,5.58053129]
[1754843845048,0.0331692,802.14,801.84,5.58053129]
[1754843847048,0.0331692,802.14,801.85,5.58053129]
[1754843849148,0.0331692,802.14,801.88,5.58053129]
[1754843851252,0.0331692,802.14,801.87,5.58053129]
[1754843853456,0.0331692,802.14,801.17,0.21686837]
[1754843854753,0.0331692,802.14,801.92,3.89779923]
[1754843856957,0.0331692,802.14,801.88,3.89779923]
[1754843857954,0.0331692,802.14,801.85,3.89779923]
[1754843858952,0.0331692,802.14,801.82,3.89779923]
[1754843863254,0.0331692,802.14,802.01,3.89779923]
[1754843865161,0.0331692,802.14,801.84,5.56828462]
[1754843867460,0.0331692,802.14,802.04,5.56828462]
[1754843869359,0.0331692,802.14,802.05,5.56828462]
[1754843871561,0.0331692,802.14,801.17,0.21686837]
[1754843871562,0.0331692,802.14,801.96,5.56828462]
[1754843873564,0.0331692,802.14,801.9,5.56828462]
[1754843875661,0.0331692,802.14,802.02,5.56828462]
[1754843877764,0.0331692,802.14,801.17,0.21686837]
[1754843877765,0.0331692,802.14,801.9,5.56828462]
[1754843879665,0.0331692,802.14,801.92,5.56828462]
[1754843881772,0.0331692,802.14,802.0,5.56828462]
[1754843883869,0.0331692,802.14,802.05,5.56828462]
[1754843886079,0.0331692,802.14,801.17,0.21686837]
[1754843886879,0.0331692,802.14,801.32,8.93008824]
[1754843887980,0.0331692,802.14,801.98,5.58236391]
[1754843889878,0.0331692,802.14,802.0,5.58236391]
[1754843892178,0.0331692,802.14,801.93,5.58236391]
[1754843894182,0.0331692,802.14,801.92,5.58236391]
[1754843896184,0.0331692,802.14,802.01,5.58236391]
[1754843898385,0.0331692,802.14,801.9,5.58626523]
[1754843900492,0.0331692,802.14,801.17,0.21686837]
[1754843902294,0.0331692,802.14,801.74,8.93008824]
[1754843907692,0.0331692,802.14,801.4,8.93008824]
[1754843909597,0.0331692,802.14,801.84,5.5893885]
[1754843911799,0.0331692,802.14,801.8,5.5893885]
[1754843913702,0.0331692,802.14,801.89,5.5893885]
[1754843916003,0.0331692,802.14,801.78,5.5893885]
[1754843918003,0.0331692,802.14,801.79,5.5893885]
[1754843920004,0.0331692,802.14,802.01,5.5893885]
[1754843924205,0.0331692,802.14,801.81,5.5893885]
[1754843926306,0.0331692,802.14,801.17,0.21686837]
[1754843926307,0.0331692,802.14,801.83,5.5893885]
[1754843928407,0.0331692,802.14,802.03,5.5893885]
[1754843930510,0.0331692,802.14,801.88,5.5893885]
[1754843932517,0.0331692,802.14,802.0,5.5893885]
[1754843934622,0.0331692,802.14,801.99,5.5893885]
[1754843936824,0.0331692,802.14,802.01,5.5893885]
[1754843938825,0.0331692,802.14,801.37,8.93008824]
[1754843941522,0.0331692,802.14,802.12,5.58872919]
[1754843943624,0.0331692,802.14,801.91,5.58872919]
[1754843945730,0.0331692,802.14,801.97,5.58872919]
[1754843947830,0.0331692,802.14,801.96,5.58872919]
[1754843949834,0.0331692,802.14,802.01,5.58872919]
[1754843952036,0.0331692,802.14,801.66,5.58872919]
[1754843953937,0.0331692,802.14,801.77,5.58872919]
[1754843956135,0.0331692,802.14,801.76,5.58872919]
[1754843958239,0.0331692,802.14,801.82,5.58872919]
[1754843960238,0.0331692,802.14,801.86,5.58872919]
[1754843962442,0.0331692,802.14,801.17,0.21686837]
[1754843962938,0.0331692,802.14,802.04,5.5857064]
[1754843965045,0.0331692,802.14,802.06,5.5857064]
[1754843966943,0.0331692,802.14,802.07,5.5857064]
[1754843969144,0.0331692,802.14,802.1,5.5857064]
[1754843971148,0.0331692,802.14,801.84,5.5857064]
[1754843973349,0.0331692,802.14,801.94,5.5857064]
[1754843975352,0.0331692,802.14,801.9,5.5857064]
[1754843977453,0.0331692,802.14,801.68,5.5857064]
[1754843979454,0.0331692,802.14,801.89,5.5857064]
[1754843981553,0.0331692,802.14,801.86,5.5857064]
[1754843983656,0.0331692,802.14,801.89,5.5857064]
[1754843985762,0.0331692,802.14,801.79,5.5857064]
[1754843987766,0.0331692,802.14,802.0,5.5857064]
[1754843989867,0.0331692,802.14,801.71,5.5857064]
[1754843991964,0.0331692,802.14,801.76,5.5857064]
[1754843993967,0.0331692,802.14,801.74,5.5857064]
[1754843996174,0.0331692,802.14,801.84,5.5857064]
[1754843998271,0.0331692,802.14,801.86,5.5857064]
[1754844000375,0.0331692,802.14,801.17,0.21686837]
[1754844001173,0.0331692,802.14,801.28,8.93008824]
[1754844001976,0.0331692,802.14,802.08,5.6008789]
[1754844003977,0.0331692,802.14,801.28,8.93008824]
[1754844005678,0.0331692,802.14,802.13,5.60250557]
[1754844007775,0.0331692,802.14,801.27,8.93008824]
[1754844007977,0.0331692,802.14,802.08,5.60480747]
[1754844009977,0.0331692,802.14,802.13,5.60480747]
[1754844014285,0.0331692,802.14,802.08,5.60480747]
[1754844014986,0.0331692,802.14,801.58,2.80480628]
[1754844015682,0.0331692,802.14,801.55,2.80480628]
[1754844016584,0.0331692,802.14,801.53,2.80480628]
[1754844017687,0.0331692,802.14,801.51,2.80480628]
[1754844019688,0.0331692,802.14,801.74,2.80480628]
[1754844020790,0.0331692,802.14,801.85,2.80480628]
[1754844021792,0.0331692,802.14,802.04,2.80480628]
[1754844022391,0.0331692,802.14,802.1,2.80480628]
[1754844022788,0.0331692,802.14,802.02,2.80480628]
[1754844023289,0.0331692,802.14,801.97,2.80480628]
[1754844025496,0.0331692,802.14,801.96,2.80480628]
[1754844029196,0.0331692,802.14,801.98,2.80480628]
[1754844029698,0.0331692,802.14,801.48,3.9267288]
[1754844029699,0.0331692,802.14,801.86,2.80480628]
[1754844030598,0.0331692,802.14,801.85,2.80480628]
[1754844031997,0.0331692,802.14,801.87,2.80480628]
[1754844032401,0.0331692,802.14,801.88,2.80480628]
[1754844032797,0.0331692,802.14,802.03,2.80480628]
[1754844033302,0.0331692,802.14,801.57,3.9267288]
[1754844033802,0.0331692,802.14,801.73,3.9267288]
[1754844034204,0.0331692,802.14,802.13,2.79451195]
[1754844037307,0.0331692,802.14,802.1,2.79451195]
[1754844037706,0.0331692,802.14,802.04,2.79451195]
[1754844038303,0.0331692,802.14,802.05,2.79451195]
[1754844039308,0.0331692,802.14,801.6,3.9267288]
[1754844040010,0.0331692,802.14,801.96,3.9267288]
[1754844042210,0.0331692,802.14,802.1,2.79397714]
[1754844043217,0.0331692,802.14,801.73,3.9267288]
[1754844043618,0.0331692,802.14,801.77,2.79371696]
[1754844044112,0.0331692,802.14,801.83,2.79371696]
[1754844047422,0.0331692,802.14,801.82,2.79371696]
[1754844047920,0.0331692,802.14,801.81,2.79371696]
[1754844048322,0.0331692,802.14,801.9,2.79371696]
[1754844049022,0.0331692,802.14,801.39,3.9267288]
[1754844049524,0.0331692,802.14,802.09,3.9267288]
[1754844050421,0.0331692,802.14,802.12,3.9267288]
[1754844051423,0.0331692,802.14,801.57,5.60480747]
[1754844052520,0.0331692,802.14,801.79,5.60480747]
[1754844054728,0.0331692,802.14,801.78,5.60480747]
[1754844056727,0.0331692,802.14,801.35,8.93008824]
[1754844057935,0.0331692,802.14,801.87,5.59023945]
[1754844058133,0.0331692,802.14,802.03,3.91347481]
[1754844060435,0.0331692,802.14,801.93,3.91347481]
[1754844062431,0.0331692,802.14,801.87,3.91347481]
[1754844063335,0.0331692,802.14,801.79,3.91347481]
[1754844064334,0.0331692,802.14,801.8,3.91347481]
[1754844066539,0.0331692,802.14,801.77,3.91347481]
[1754844067542,0.0331692,802.14,802.02,3.91347481]
[1754844068642,0.0331692,802.14,802.03,3.91347481]
[1754844069739,0.0331692,802.14,802.07,3.91805592]
[1754844071944,0.0331692,802.14,801.95,3.91805592]
[1754844073041,0.0331692,802.14,801.86,3.91805592]
[1754844074146,0.0331692,802.14,801.77,3.91805592]
[1754844075245,0.0331692,802.14,802.13,2.79895679]
[1754844076746,0.0331692,802.14,801.76,3.91805592]
[1754844077148,0.0331692,802.14,801.78,3.91805592]
[1754844078250,0.0331692,802.14,802.13,2.79738638]
[1754844079447,0.0331692,802.14,801.93,2.79698221]
[1754844080054,0.0331692,802.14,802.01,2.79698221]
[1754844080449,0.0331692,802.14,802.0,2.79698221]
[1754844081454,0.0331692,802.14,801.99,2.79698221]
[1754844082153,0.0331692,802.14,801.86,2.79698221]
[1754844083154,0.0331692,802.14,801.84,2.79698221]
[1754844083553,0.0331692,802.14,801.85,2.79698221]
[1754844084655,0.0331692,802.14,801.83,2.79698221]
[1754844085059,0.0331692,802.14,801.82,2.79698221]
[1754844085760,0.0331692,802.14,801.74,2.79698221]
[1754844086258,0.0331692,802.14,801.89,2.79698221]
[1754844086862,0.0331692,802.14,801.82,2.79698221]
[1754844087363,0.0331692,802.14,801.73,2.79698221]
[1754844089461,0.0331692,802.14,801.72,2.79698221]
[1754844090459,0.0331692,802.14,801.77,2.79698221]
[1754844091961,0.0331692,802.14,801.74,2.79698221]
[1754844092465,0.0331692,802.14,801.73,2.79698221]
[1754844093065,0.0331692,802.14,801.68,2.79698221]
[1754844093563,0.0331692,802.14,801.69,2.79698221]
[1754844094566,0.0331692,802.14,801.71,2.79698221]
[1754844095765,0.0331692,802.14,801.7,2.79698221]
[1754844096171,0.0331692,802.14,801.69,2.79698221]
[1754844096565,0.0331692,802.14,801.72,2.79698221]
[1754844098369,0.0331692,802.14,801.68,2.79698221]
[1754844098771,0.0331692,802.14,801.8,2.79698221]